Cogmind - Beta 15 *** ADVENTURER MODE // 2025.05.25 @ 22:49:37 Player: Finn Result: Destroyed by CR-EHR(R) with Subdweller Machine Gun Performance ------------- Evolutions (0) 0 Regions Visited (2) 400 Robots Destroyed (13) 65 Value Destroyed (383) 383 Prototype IDs (2) 40 Alien Tech Used (0) 0 Bonus (0) 0 TOTAL SCORE: 888 Bonus ------- None Cogmind --------- Core Integrity 0/250 Matter 142/300 Energy 100/100 System Corruption 0% Temperature Cool (0) Movement Core (150) Ox2 Location -10/Subcaves Parts ------- > --- POWER (1) -------- (None) > --- PROPULSION (2) --- (None) > --- UTILITY (2) ------ Small Storage Unit Subdweller Optics > --- WEAPON (2) ------- Hammer > --- INVENTORY (8) ---- Subdweller Power Source Power Shielding Peak State ------------ > --- POWER ------------ Subdweller Power Source > --- PROPULSION ------- Wheel Subdweller Monowheel > --- UTILITY ---------- Small Storage Unit Targeting Computer > --- WEAPON ----------- Light Assault Rifle Battle Rifle > --- INVENTORY -------- Subdweller Power Source Subdweller Optics Hammer [Rating: 10] Favorites ----------- Power Light Ion Engine Engine Light Ion Engine Propulsion Aluminum Leg Leg Aluminum Leg Wheel Wheel Utility Small Storage Unit Device Subdweller Optics Storage Small Storage Unit Processor Targeting Computer Weapon Light Assault Rifle Energy Gun Small Laser Ballistic Gun Light Assault Rifle Launcher Subdweller Shrapnel Launcher Impact Weapon Hammer Build | -11 -10 -10 ------- Run | Yrd Mat Sub Slots Evolved . | . . . Power . | . . . Propulsion . | . . . Utility . | . . . Weapon . | . . . Parts Attached 18 | 6 3 9 Power 3 | 1 . 2 Engine 3 | 1 . 2 Core . | . . . Reactor . | . . . Propulsion 4 | 2 . 2 Treads . | . . . Leg 2 | 2 . . Wheel 2 | . . 2 Hover . | . . . Flight . | . . . Utility 4 | 1 2 1 Device 1 | . . 1 Storage 2 | 1 1 . Processor 1 | . 1 . Hackware . | . . . Protection . | . . . Artifact . | . . . Weapon 7 | 2 1 4 Energy Gun 1 | 1 . . Energy Cannon . | . . . Ballistic Gun 4 | 1 1 2 Ballistic Cannon . | . . . Launcher 1 | . . 1 Special Weapon . | . . . Impact Weapon 1 | . . 1 Slashing Weapon . | . . . Piercing Weapon . | . . . Special Melee Weapon . | . . . Unidentified Prototypes . | . . . Parts Lost 13 | . . 13 Power 2 | . . 2 Propulsion 4 | . . 4 Utility 1 | . . 1 Weapon 6 | . . 6 Highest Loss Streak 6 | . . 6 To Critical Strikes . | . . . Average Backups 2 | . 1 3 Power . | . . . Propulsion . | . . . Utility . | . . . Weapon 1 | . 1 1 Tool/Special . | . . . Unused Backups 1 | . . 1 Power . | . . . Propulsion . | . . . Utility 1 | . . 1 Weapon . | . . . Tool/Special . | . . . Average Slot Usage (%) 83 | . 96 76 Engine 11 | . 13 10 Leg 14 | . 27 7 Wheel 4 | . . 7 Device 3 | . . 6 Storage 14 | . 14 14 Processor 9 | . 12 7 Energy Gun 7 | . 13 3 Ballistic Gun 14 | . 14 15 Impact Weapon 2 | . . 3 Peak Build Rating 10 | 6 7 10 Average Rating 6 | 4 6 7 On Entrance 4 | . 6 7 Naked Turns . | . . . Heaviest Build 18 | 10 10 18 Greatest Support 30 | 20 20 30 Greatest Overweight (x) 5 | . 1 5 Average Overweight (x) . | . . 1 Largest Inventory Capacity 25 | 8 25 8 Average Capacity 7 | 6 8 8 Most Carried 7 | 3 6 7 Average Carried 2 | . 1 3 Final Capacity 8 | 8 8 8 Final Carried 2 | 1 2 2 Class Distribution -------------------- 100% | Mutant Dominant Class ---------------- Mutant | -10/Materials Mutant | -10/Subcaves Resources | -11 -10 -10 ----------- Run | Yrd Mat Sub Matter Collected 512 | 201 75 236 Remotely . | . . . Salvage Created 370 | . 129 241 Parts 21 | . 9 12 Haulers Intercepted . | . . . Recyclers Shooed 1 | . 1 . Parts Field Recycled . | . . . Retrieved Matter . | . . . Parts Self-Destructed 9 | . . 9 Prevented . | . . . Kills | -11 -10 -10 ------- Run | Yrd Mat Sub Combat Hostiles Destroyed 11 | . 4 7 Guns 8 | . 4 4 AOE 3 | . . 3 Classes Destroyed 5 | . 3 2 Watcher 2 | . 2 . Swarmer 3 | . 3 . Grunt 2 | . 1 1 Artisan 1 | . . 1 Subdweller 6 | . . 6 Best Kill Streak 4 | . 4 3 Combat Bots Only 3 | . 3 3 Max Kills in Single Turn 2 | . 1 2 Gunslinging . | . . . Exploded 2 | . . 2 Melee . | . . . Uniques/NPCs Destroyed . | . . . Combat | -11 -10 -10 -------- Run | Yrd Mat Sub Hostile Shots Fired 99 | . 18 81 Missed 21 | . 2 19 Hits 78 | . 16 62 Projectile 78 | . 16 62 AOE 1 | . . 1 Critical Strikes 3 | . . 3 Damage Taken 1180 | . 104 1076 Core 254 | . 11 243 Absorbed by Shields . | . . . Ignored by Resistances 339 | . 34 305 Core Remaining (%) 100 | 100 . . Volleys Fired 81 | . 21 60 Largest 2 | . 2 2 Hottest 60 | . 60 60 Shots Fired 155 | . 41 114 Gun 153 | . 41 112 Cannon . | . . . Launcher 2 | . . 2 Special . | . . . Kinetic 130 | . 21 109 Thermal 25 | . 20 5 Explosive . | . . . Electromagnetic . | . . . Robot Hit Streak 37 | . 9 37 Robot Miss Streak 2 | . 2 1 Penetration Max . | . . . Secondary Targets . | . . . Shots Hit Robots 89 | . 30 59 Core Hits 25 | . 10 15 Critical Kills . | . . . Critical Parts Destroyed 1 | . . 1 Critical Strikes 1 | . . 1 Smash 1 | . . 1 Melee Attacks 10 | . . 10 Impact 10 | . . 10 Slashing . | . . . Piercing . | . . . Sneak Attacks . | . . . Combat Hostiles . | . . . Follow-up Attacks . | . . . Damage Inflicted 1194 | . 292 902 Guns 799 | . 284 515 Cannons . | . . . Explosions 276 | . . 276 Melee 111 | . . 111 Ramming 8 | . 8 . Kinetic 899 | . 108 791 Thermal 176 | . 176 . Explosive . | . . . Electromagnetic . | . . . Impact 111 | . . 111 Slashing . | . . . Piercing . | . . . Highest Corruption . | . . . Average Corruption . | . . . Corruption Purged . | . . . Corruption Blocked . | . . . Overload Shots . | . . . Overflow Damage 52 | . . 52 Projectiles . | . . . Explosions 20 | . . 20 Melee 32 | . . 32 Knockbacks 1 | . . 1 Impact 1 | . . 1 Kinetic . | . . . Secondary . | . . . Self-Inflicted Damage 63 | . . 63 Shots 2 | . . 2 Rammed . | . . . Targets Rammed 2 | . 2 . Kicked 2 | . 2 . Crushed . | . . . Highest Temperature 209 | . 58 209 Average Temperature 35 | . 22 97 Received Heat Transfer 450 | . 18 432 Siege Activations . | . . . Martial Activations . | . . . Shielding Activations . | . . . Robots Disrupted . | . . . Combat Hostiles . | . . . Robots Corrupted . | . . . Combat Hostiles . | . . . Parts Fried . | . . . Impact Corruptions 1 | . . 1 Robots Melted . | . . . Combat Hostiles . | . . . Parts Melted 1 | . . 1 Heat Transferred 400 | . 400 . Parts Sabotaged . | . . . Parts Stolen . | . . . Parts Stripped . | . . . Power Chain Reactions . | . . . Alert | -11 -10 -10 ------- Run | Yrd Mat Sub Maximum Alert Level . | . . . Low Security (%) 100 | 100 100 . Level 1 . | . . . Level 2 . | . . . Level 3 . | . . . Level 4 . | . . . Level 5 . | . . . High Security . | . . . Max Security . | . . . Peak Influence 82 | . 82 . Initial . | . . . Average 14 | . 15 . Influence Increases 172 | . 142 30 Destroy 0b10 Robot/C 100 | . 80 20 Destroy 0b10 Robot/NC 10 | . 10 . Destroy Leader 24 | . 14 10 Successful Hack 8 | . 8 . Lose Combat Pursuer 30 | . 30 . Influence Decreases 172 | . 136 36 Entered New Map 4 | . . 4 Time Decay 168 | . 136 32 Squads Dispatched . | . . . Investigation . | . . . Extermination . | . . . Reinforcement . | . . . Assault . | . . . Garrison . | . . . Intercept . | . . . Searches Triggered . | . . . Construction Impeded . | . . . Haulers Reinforced . | . . . Active Scanning Responses . | . . . Cargo Convoy Interrupts . | . . . Stealth | -11 -10 -10 --------- Run | Yrd Mat Sub Distress Signals 3 | . 3 . Communications Jammed . | . . . Distress Signals . | . . . Times Spotted 25 | . 13 12 Peak Tracking Total 4 | . 4 3 Tactical Retreats 4 | . 2 2 Traps | -11 -10 -10 ------- Run | Yrd Mat Sub Traps Triggered 2 | . 2 . Indirectly . | . . . Trap Hack Attempts . | . . . Triggered . | . . . Disarmed 1 | . 1 . Reprogrammed . | . . . Reused . | . . . Traps Extracted . | . . . Installed . | . . . Triggered . | . . . Machines | -11 -10 -10 ---------- Run | Yrd Mat Sub Machines Disabled . | . . . Max in Single Turn . | . . . Machines Repaired . | . . . Machines Dismantled . | . . . Machines Sabotaged . | . . . Overloaded Fab Kills . | . . . Hacking | -11 -10 -10 --------- Run | Yrd Mat Sub Machines Accessed 6 | . 6 . Terminals 6 | . 6 . Fabricators . | . . . Repair Stations . | . . . Recycling Units . | . . . Scanalyzers . | . . . Garrison Access . | . . . Total Hacks 9 | . 9 . Successful 6 | . 6 . Failed 3 | . 3 . Catastrophic . | . . . Database Lockouts . | . . . Manual . | . . . Terminals 9 | . 9 . Fabricators . | . . . Repair Stations . | . . . Recycling Units . | . . . Scanalyzers . | . . . Garrison Access . | . . . Terminal Hacks 6 | . 6 . Record 1 | . 1 . Prototype ID Bank 1 | . 1 . Disarm Traps 1 | . 1 . Hauler Manifests 1 | . 1 . Zone Layout 2 | . 2 . Fabricator Hacks . | . . . Repair Station Hacks . | . . . Recycling Unit Hacks . | . . . Scanalyzer . | . . . Garrison Access Hacks . | . . . Unauthorized Hacks . | . . . Terminals . | . . . Fabricators . | . . . Repair Stations . | . . . Recycling Units . | . . . Scanalyzers . | . . . Garrison Access . | . . . Data Cores Recovered . | . . . Used . | . . . Hacking Detections 2 | . 2 . Full Trace Events . | . . . Feedback Events . | . . . Feedback Blocked . | . . . Robot Schematics Acquired . | . . . Robots Built . | . . . Authchips . | . . . Time . | . . . Total Robot Build Rating . | . . . Part Schematics Acquired . | . . . Parts Built . | . . . Authchips . | . . . Time . | . . . Total Part Build Rating . | . . . Parts Repaired . | . . . Time . | . . . Parts Recycled . | . . . Recycled Matter . | . . . Retrieved Matter . | . . . Retrieved Components . | . . . Parts Scanalyzed . | . . . Part Schematics Acquired . | . . . Parts Damaged . | . . . Bothacking | -11 -10 -10 ------------ Run | Yrd Mat Sub Used RIF Installer . | . . . Robots Hacked . | . . . Non-combat . | . . . Combat . | . . . Robot Hacks Applied . | . . . Relay Couplers Released . | . . . Fabnet Peak Effective % . | . . . Robots Rewired . | . . . Allies Hacked . | . . . Hacks Repelled . | . . . Allies | -11 -10 -10 -------- Run | Yrd Mat Sub Total Allies . | . . . Largest Group . | . . . Highest-Rated Group . | . . . Highest-Rated Ally . | . . . Total Orders . | . . . Ally Attacks . | . . . Total Damage . | . . . Kills . | . . . Allies Corrupted . | . . . Allies Melted . | . . . Intel | -11 -10 -10 ------- Run | Yrd Mat Sub Active Infowar (turns) 397 | . . 397 Optics 397 | . . 397 Robot Analysis Total . | . . . Derelict Logs Recovered . | . . . Drone Launches . | . . . Drone Recoveries . | . . . Exploration | -11 -10 -10 ------------- Run | Yrd Mat Sub Turns Passed 1824 | 72 665 1087 Spaces Moved 908 | 49 279 580 Core 256 | 7 7 242 Treads . | . . . Legs 489 | 42 272 175 Wheels 163 | . . 163 Hover . | . . . Flight . | . . . Fastest Speed 50 | 50 100 95 Average Speed 132 | 110 119 140 Slowest Speed 300 | 120 120 300 Overloaded Moves . | . . . Propulsion Burnouts . | . . . Robots Hopped . | . . . Potential Cave-ins . | . . . Cave-ins Triggered . | . . . Exploration Rate (%) 25 | 3 48 25 Regions Visited 2 Branch Regions 1 Pre-discovered Areas . | . . . Known Exits Taken . | . . . Unknown Exits Taken 2 | 1 1 . Scrap Searched 3 | . . 3 Spaces Dug 2 | . . 2 Terrain Destroyed 27 | . . 27 Melee 2 | . . 2 Projectile . | . . . AOE 25 | . . 25 Terrain Rammed . | . . . Walls Destroyed . | . . . Machines Disabled . | . . . Actions | -11 -10 -10 --------- Run | Yrd Mat Sub Total 1375 | 67 573 735 Wait 325 | 6 257 62 Move 906 | 48 278 580 Hop . | . . . Pick Up 23 | 7 7 9 Fast Attach . | . . . Attach 21 | 6 6 9 Detach . | . . . Swap 6 | . 1 5 Drop 1 | . 1 . Fire 81 | . 21 60 Melee 10 | . . 10 Ram . | . . . Kick 2 | . 2 . Crush . | . . . Escape Stasis . | . . . Rewire . | . . . Trap . | . . . Miscellaneous . | . . . Route ------- -11/Scrapyard -10/Materials (discovered 4 exits: [*Mat] / [*Min x2] / [*Sub]) -10/Subcaves History --------- Turn | Location | Event 12 | -11/Scrapyard | Discovered new exit (range 15) 73 | -11/Scrapyard | Entered Materials 73 | -10/Materials | Discovered new exit (range 7) 160 | -10/Materials | Discovered new exit (range 16) 311 | -10/Materials | Build established: Mutant 723 | -10/Materials | Discovered new exit (range 16) 731 | -10/Materials | Discovered new exit (range 6) 738 | -10/Materials | Entered Subcaves 987 | -10/Subcaves | A Subdweller sparked back to life 987 | -10/Subcaves | A Subdweller sparked back to life 987 | -10/Subcaves | A Subdweller sparked back to life 1037 | -10/Subcaves | Lost 6 parts (1p2n3w) 1209 | -10/Subcaves | A swath of the cavern ceiling suddenly collapsed 1289 | -10/Subcaves | Core integrity fell below 50% 1349 | -10/Subcaves | Lost 3 parts (2n1u) 1497 | -10/Subcaves | Core integrity fell below 20% 1564 | -10/Subcaves | Lost 3 parts (1p2w) 1825 | -10/Subcaves | Destroyed by CR-EHR(R) with Subdweller Machine Gun Last Messages --------------- 01318_ Targeting Computer destroyed. 01326_ 9E-3SI(R) destroyed. 01329_ Acquired 31 matter. 01334_ Acquired Power Shielding. 01339_ Acquired Sub. Machine Gun. 01351_ Subatomizers dissect the Sub. Optics. 01409_ Battle Rifle destroyed. 01417_ G-47 Trooper destroyed. 01429_ Acquired 35 matter. 01481_ L9-Z3S(R): "LEAVESUB!" 01494_ Sub. Machine Gun destroyed. 01520_ QB-6ZL(R) knocked back. 01520_ Lgt. Assault Rifle destroyed. 01533_ Sub. Power Source destroyed. 01535_ QB-6ZL(R) suffers critical hit (Smash). 01535_ Destroyed Sub. Laser. 01535_ QB-6ZL(R) system corrupted by crushing effect. 01720_ Sub. Optics shoots sparks and powers down. Map ----- +----------------------------------------------------+ | ?????#####????????????????????????????????????? | | ?????#" #########????????????????????????????? | | ?????### ## ## ##???????????????????????????? | | ???????## ##?######???????????????????? | | ????????# #?# #???????????????????? | | ????????# ###### #???????????????????? | | ????????# #??## #????????????????????? | | ????????# " #?## #????????????????????? | | ????????## " ### ##???????????????????? | | ?????????##" "" ## #???????????????????? | | ??????????##""" #???????????????????? | | ???????????### #####???????????????????? | | ?????????????#### ##???????????????????????? | | ????????????????# ##???????????????????????? | | ????????????????## ##??????????????????????? | | ?????????????????# #??????????????????????? | | ?????????????????## #??????????????????????? | | ???????????????#### ##??????????????????????? | | ???????????????# #???????????????????????? | | ???????????????# ###???###???????????????? | | ??????????????## ### #??# ##??????????????? | | ??????????????# ### ### #??????????????? | | ?????????????## ### #??????????????? | | ?????????????# ### ##??????????????? | | ????????#????# ## ## ##???????????????? | | ????????# ???#### ### @ ###????????????????? | | ????????## ????## #?# R ##?????????????????? | | ????????# #### #?## #?????????????????? | | ????????# ####### #####?????????????? | | ????????## ##??# ## ##????????????? | | ?????????## ## #?## ## "#????????????? | | ?????###??##??## #?# ###????????????? | | ?????# ?????## #?## ##??????????????? | | ?????# ????## ##??## #???????????????? | | ?????# ???## ##????## ##???????????????? | | ?????# #?## ##?###### #????????????????? | | ###### ## #??# ###??????????????? | | ###??# ##?????????????? | | ######## #?????????????? | | #### #### #?????????????? | | #### #?# ##?????????????? | | ## #?# #####??????????????? | | #?####?###??????????????? | | ###### #####?# ##?????????????? | | #??????## ## ### ## #?????????????? | | ?????????# ####### #?????????????? | | ??????????# ###??# * ##?????????????? | | ????####??# ##?# #??????????????? | | ???## #### #?## ## #??????????????? | | ??## #??## ##?? #?????????????? | +----------------------------------------------------+ Best States ------------- Heat Dissipation 25 Energy Generation 15 Energy Capacity 200 Matter Stores 300 Matter Capacity 300 Sight Range 21 Terrain Scan Density 10 Resistance: KI 20 Resistance: TH 20 Resistance: EX 20 Resistance: EM 20 Resistance: I 20 Resistance: S 20 Resistance: P 20 Evasion (%) 55 Targeting Accuracy 5 Offensive Hacking 10 Item Schematics ----------------- None Robot Schematics ------------------ None Fabricated ------------ Nothing Repaired ---------- Nothing Alien Tech Used ----------------- None Achievements -------------- None Challenges ------------ None Game ------ Seed AccelerationGaussShotgun Manual? 0 Play Time 00:16:25 Cumulative 7.3 hours Start 2025.05.25 @ 22:34:55 End 2025.05.25 @ 22:49:37 Sessions 1 Manual Loads 0 Difficulty Adventurer Special Mode None Game No. 13 Rogue 0 Adventurer 11 Explorer 2 Win Type - Total 0 Types 0/0/0/0/0/0/0/0/0/0 Lore% 3 Gallery% 13 Achievement% 15 Wizard Run 0 Options --------- Layout 1 ASCII 0 Keyboard 0 Movement Mouse Keybinds 0 Fullscreen 1 Font 24/Smallcaps Map View 50x35 Zoom Use 0% Tactical HUD 1 Map Filters NONE Filters NONE Steam 1 RUN: 3ae9bdfe-9d56-4e19-8ce0-13de42d363b5